fUST/lending_fUST_20250424
["ID","MTS","AMOUNT","RATE_DAILY","PERIOD"]
[358867943,1745497838360,-500.0,0.00019178,2]
[358867944,1745497838369,-500.0,0.00019178,2]
[358867945,1745497838379,-500.0,0.00019178,2]
[358867946,1745497838388,-1190.16,0.00019178,2]
[358867947,1745497838397,-399.0784713,0.00019178,2]
[358867948,1745497838407,-500.0,0.00019178,2]
[358867949,1745497838416,-509.72264243,0.00019178,2]
[358867950,1745497838426,-500.0,0.00019178,2]
[358867951,1745497838435,-505.18507414,0.00019178,2]
[358867952,1745497838444,-500.0,0.00019178,2]
[358867953,1745497838454,-185.65017959,0.00019178,2]
[358867954,1745497838463,-500.0,0.00019178,2]
[358867955,1745497838473,-500.0,0.00019178,2]
[358867956,1745497838482,-500.0,0.00019178,2]
[358867957,1745497838492,-506.67288113,0.00019178,2]
[358867958,1745497838501,-1011.56,0.00019178,2]
[358867959,1745497838511,-500.0,0.00019178,2]
[358867960,1745497838520,-500.0,0.00019178,2]
[358867961,1745497838530,-500.0,0.00019178,2]
[358867962,1745497838539,-500.0,0.00019178,2]
[358867963,1745497838549,-501.62148324,0.00019178,2]
[358867964,1745497838562,-504.13450546,0.00019178,2]
[358867965,1745497838571,-500.0,0.00019178,2]
[358867966,1745497838580,-500.0,0.00019178,2]
[358867967,1745497838589,-641.17,0.00019178,2]
[358867968,1745497838599,-500.0,0.00019178,2]
[358867969,1745497838608,-500.0,0.00019178,2]
[358867970,1745497838617,-602.5,0.00019178,2]
[358867971,1745497838627,-500.0,0.00019178,2]
[358867972,1745497838638,-500.0,0.00019178,2]
[358867973,1745497838648,-500.0,0.00019178,2]
[358867974,1745497838657,-500.0,0.00019178,2]
[358867975,1745497838667,-500.0,0.00019178,2]
[358867976,1745497838676,-1184.71,0.00019178,2]
[358867977,1745497838685,-500.0,0.00019178,2]
[358867978,1745497838695,-500.0,0.00019178,2]
[358867979,1745497838705,-500.0,0.00019178,2]
[358867980,1745497838714,-500.0,0.00019178,2]
[358867981,1745497838725,-504.6676617,0.00019178,2]
[358867982,1745497838734,-500.0,0.00019178,2]
[358867983,1745497838746,-628.58,0.00019178,2]
[358867984,1745497838756,-500.0,0.00019178,2]
[358867985,1745497838766,-500.0,0.00019178,2]
[358867986,1745497838776,-1026.21,0.00019178,2]
[358867987,1745497838785,-500.0,0.00019178,2]
[358867988,1745497838794,-500.0,0.00019178,2]
[358867989,1745497838803,-500.0,0.00019178,2]
[358867990,1745497838813,-500.0,0.00019178,2]
[358867991,1745497838823,-500.0,0.00019178,2]
[358867992,1745497838833,-507.15,0.00019178,2]
[358867993,1745497838843,-500.0,0.00019178,2]
[358867994,1745497838853,-518.42208749,0.00019178,2]
[358867995,1745497838864,-618.37,0.00019178,2]
[358867996,1745497838873,-500.0,0.00019178,2]
[358867997,1745497838882,-500.0,0.00019178,2]
[358867998,1745497838891,-504.05371868,0.00019178,2]
[358867999,1745497838900,-504.18676747,0.00019178,2]
[358868000,1745497838909,-500.0,0.00019178,2]
[358868001,1745497838919,-505.60450518,0.00019178,2]
[358868002,1745497838928,-2796.32,0.00019178,2]
[358868003,1745497838938,-500.0,0.00019178,2]
[358868004,1745497838947,-953.61,0.00019178,2]
[358868005,1745497838957,-908.7,0.00019178,2]
[358868006,1745497838967,-500.0,0.00019178,2]
[358868007,1745497838976,-500.0,0.00019178,2]
[358868008,1745497838986,-500.0,0.00019178,2]
[358868009,1745497838996,-277.55965147,0.00019178,2]
[358868010,1745497839005,-751.6,0.00019178,2]
[358868011,1745497839015,-502.87061232,0.00019178,2]
[358868012,1745497839023,-591.3,0.00019178,2]
[358868013,1745497839033,-500.0,0.00019178,2]
[358868014,1745497839042,-508.63017885,0.00019178,2]
[358868015,1745497839051,-500.0,0.00019178,2]
[358868016,1745497839060,-500.0,0.00019178,2]
[358868017,1745497839070,-500.0,0.00019178,2]
[358868018,1745497839079,-500.0,0.00019178,2]
[358868019,1745497839089,-500.0,0.00019178,2]
[358868020,1745497839098,-500.0,0.00019178,2]
[358868021,1745497839108,-500.0,0.00019178,2]
[358868022,1745497839117,-504.71741946,0.00019178,2]
[358868023,1745497839126,-500.0,0.00019178,2]
[358868024,1745497839135,-500.0,0.00019178,2]
[358868025,1745497839144,-500.0,0.00019178,2]
[358868026,1745497839153,-503.29216947,0.00019178,2]
[358868027,1745497839163,-505.54069586,0.00019178,2]
[358868028,1745497839172,-695.87,0.00019178,2]
[358868029,1745497839181,-500.0,0.00019178,2]
[358868030,1745497839191,-500.0,0.00019178,2]
[358868031,1745497839200,-500.0,0.00019178,2]
[358868032,1745497839209,-504.93828522,0.00019178,2]
[358868033,1745497839219,-503.34243995,0.00019178,2]
[358868034,1745497839229,-500.0,0.00019178,2]
[358868035,1745497839239,-500.0,0.00019178,2]
[358868036,1745497839248,-500.0,0.00019178,2]
[358868037,1745497839257,-500.0,0.00019178,2]
[358868038,1745497839267,-503.10909015,0.00019178,2]
[358868039,1745497839278,-500.0,0.00019178,2]
[358868040,1745497839287,-500.0,0.00019178,2]
[358868041,1745497839297,-500.0,0.00019178,2]
[358868042,1745497839307,-500.0,0.00019178,2]
[358868043,1745497839316,-500.0,0.00019178,2]
[358868044,1745497839326,-2367.64,0.00019178,2]
[358868045,1745497839336,-500.0,0.00019178,2]
[358868046,1745497839346,-500.0,0.00019178,2]
[358868047,1745497839355,-500.0,0.00019178,2]
[358868048,1745497839365,-500.0,0.00019178,2]
[358868049,1745497839375,-500.0,0.00019178,2]
[358868050,1745497839385,-500.0,0.00019178,2]
[358868051,1745497839395,-850.35,0.00019178,2]
[358868052,1745497839406,-500.0,0.00019178,2]
[358868053,1745497839417,-534.96,0.00019178,2]
[358868054,1745497839427,-500.0,0.00019178,2]
[358868055,1745497839436,-500.0,0.00019178,2]
[358868056,1745497839446,-670.91,0.00019178,2]
[358868057,1745497839455,-500.0,0.00019178,2]
[358868058,1745497839465,-1218.35,0.00019178,2]
[358868059,1745497839475,-500.0,0.00019178,2]
[358868060,1745497839485,-500.0,0.00019178,2]
[358868061,1745497839494,-500.0,0.00019178,2]
[358868062,1745497839504,-500.0,0.00019178,2]
[358868063,1745497839513,-593.93519418,0.00019178,2]
[358868064,1745497839524,-500.0,0.00019178,2]
[358868065,1745497839533,-500.0,0.00019178,2]
[358868066,1745497839543,-747.95,0.00019178,2]
[358868067,1745497839556,-627.15,0.00019178,2]
[358868068,1745497839566,-500.0,0.00019178,2]
[358868069,1745497839576,-504.5770294,0.00019178,2]
[358868071,1745497839585,-1510.53,0.00019178,2]
[358868073,1745497839595,-500.0,0.00019178,2]
[358868075,1745497839604,-545.25,0.00019178,2]
[358868076,1745497839613,-500.0,0.00019178,2]
[358868077,1745497839625,-500.0,0.00019178,2]
[358868078,1745497839635,-500.0,0.00019178,2]
[358868079,1745497839644,-500.0,0.00019178,2]
[358868080,1745497839655,-500.0,0.00019178,2]
[358868081,1745497839664,-500.0,0.00019178,2]
[358868082,1745497839674,-500.0,0.00019178,2]
[358868083,1745497839683,-500.0,0.00019178,2]
[358868084,1745497839693,-682.01,0.00019178,2]
[358868085,1745497839702,-500.0,0.00019178,2]
[358868086,1745497839712,-500.0,0.00019178,2]
[358868087,1745497839722,-500.0,0.00019178,2]
[358868088,1745497839731,-2919.44,0.00019178,2]
[358868089,1745497839740,-500.0,0.00019178,2]
[358868090,1745497839750,-500.0,0.00019178,2]
[358868091,1745497839759,-500.0,0.00019178,2]
[358868092,1745497839768,-500.45262469,0.00019178,2]
[358868093,1745497839779,-500.0,0.00019178,2]
[358868094,1745497839788,-500.0,0.00019178,2]
[358868095,1745497839798,-500.0,0.00019178,2]
[358868096,1745497839807,-500.0,0.00019178,2]
[358868097,1745497839816,-500.0,0.00019178,2]
[358868098,1745497839826,-500.0,0.00019178,2]
[358868099,1745497839835,-607.65,0.00019178,2]
[358868100,1745497839844,-500.0,0.00019178,2]
[358868101,1745497839853,-1142.52,0.00019178,2]
[358868102,1745497839863,-596.18538446,0.00019178,2]
[358868103,1745497839872,-500.0,0.00019178,2]
[358868104,1745497839882,-500.0,0.00019178,2]
[358868105,1745497839892,-500.0,0.00019178,2]
[358868106,1745497839902,-1205.12,0.00019178,2]
[358868107,1745497839912,-558.02053089,0.00019178,2]
[358868108,1745497839924,-167.32404216,0.00019178,2]
[358868109,1745497839934,-507.31,0.00019178,2]
[358868110,1745497839945,-500.0,0.00019178,2]
[358868111,1745497839955,-500.0,0.00019178,2]
[358868112,1745497839965,-500.0,0.00019178,2]
[358868113,1745497839975,-500.0,0.00019178,2]
[358868114,1745497839985,-500.0,0.00019178,2]
[358868115,1745497839995,-503.23625298,0.00019178,2]
[358868116,1745497840004,-503.31382095,0.00019178,2]
[358868117,1745497840013,-1064.4,0.00019178,2]
[358868118,1745497840023,-500.0,0.00019178,2]
[358868119,1745497840033,-500.0,0.00019178,2]
[358868120,1745497840042,-883.9,0.00019178,2]
[358868121,1745497840051,-500.0,0.00019178,2]
[358868122,1745497840061,-686.64,0.00019178,2]
[358868123,1745497840070,-507.00802912,0.00019178,2]
[358868124,1745497840079,-208.45867133,0.00019178,2]
[358868125,1745497840088,-966.9,0.00019178,2]
[358868126,1745497840097,-503.76834141,0.00019178,2]
[358868127,1745497840107,-500.0,0.00019178,2]
[358868128,1745497840116,-500.0,0.00019178,2]
[358868129,1745497840125,-774.96,0.00019178,2]
[358868130,1745497840136,-500.0,0.00019178,2]
[358868131,1745497840145,-500.0,0.00019178,2]
[358868132,1745497840156,-151.0,0.00019178,2]
[358868133,1745497840167,-500.0,0.00019178,2]
[358868134,1745497840176,-500.0,0.00019178,2]
[358868135,1745497840185,-775.5,0.00019178,2]
[358868136,1745497840195,-500.0,0.00019178,2]
[358868137,1745497840205,-500.0,0.00019178,2]
[358868138,1745497840214,-1109.1,0.00019178,2]
[358868139,1745497840224,-500.0,0.00019178,2]
[358868140,1745497840233,-500.0,0.00019178,2]
[358868141,1745497840243,-500.0,0.00019178,2]
[358868142,1745497840252,-500.0,0.00019178,2]
[358868143,1745497840262,-500.0,0.00019178,2]
[358868145,1745497840271,-500.0,0.00019178,2]
[358868146,1745497840280,-742.51,0.00019178,2]
[358868147,1745497840295,-679.96,0.00019178,2]
[358868149,1745497840305,-463.90463715,0.00019178,2]
[358868150,1745497840314,-502.59668745,0.00019178,2]
[358868151,1745497840323,-500.0,0.00019178,2]
[358868152,1745497840333,-500.0,0.00019178,2]
[358868154,1745497840343,-1141.32,0.00019178,2]
[358868155,1745497840353,-500.0,0.00019178,2]
[358868156,1745497840363,-500.0,0.00019178,2]
[358868158,1745497840373,-500.0,0.00019178,2]
[358868159,1745497840382,-500.0,0.00019178,2]
[358868160,1745497840392,-500.0,0.00019178,2]
[358868161,1745497840402,-661.23,0.00019178,2]
[358868162,1745497840411,-500.0,0.00019178,2]
[358868163,1745497840421,-500.0,0.00019178,2]
[358868164,1745497840430,-500.0,0.00019178,2]
[358868165,1745497840439,-674.14,0.00019178,2]
[358868166,1745497840450,-679.82,0.00019178,2]
[358868167,1745497840459,-504.30502543,0.00019178,2]
[358868168,1745497840469,-500.0,0.00019178,2]
[358868169,1745497840479,-1008.29,0.00019178,2]
[358868170,1745497840489,-505.9188295,0.00019178,2]
[358868171,1745497840499,-500.0,0.00019178,2]
[358868172,1745497840509,-500.0,0.00019178,2]
[358868173,1745497840519,-794.82,0.00019178,2]
[358868174,1745497840529,-503.91690168,0.00019178,2]
[358868175,1745497840539,-500.0,0.00019178,2]
[358868176,1745497840549,-500.0,0.00019178,2]
[358868177,1745497840562,-500.0,0.00019178,2]
[358868178,1745497840571,-500.0,0.00019178,2]
[358868179,1745497840580,-502.2314393,0.00019178,2]
[358868180,1745497840590,-500.0,0.00019178,2]
[358868181,1745497840602,-502.88738888,0.00019178,2]
[358868182,1745497840612,-500.0,0.00019178,2]
[358868183,1745497840622,-504.4368688,0.00019178,2]
[358868184,1745497840636,-500.0,0.00019178,2]
[358868185,1745497840646,-500.0,0.00019178,2]
[358868186,1745497840655,-500.0,0.00019178,2]
[358868187,1745497840664,-500.0,0.00019178,2]
[358868188,1745497840673,-500.0,0.00019178,2]
[358868189,1745497840682,-500.0,0.00019178,2]
[358868190,1745497840691,-500.0,0.00019178,2]
[358868191,1745497840700,-500.0,0.00019178,2]
[358868192,1745497840710,-500.0,0.00019178,2]
[358868193,1745497840719,-500.0,0.00019178,2]
[358868194,1745497840729,-500.0,0.00019178,2]
[358868195,1745497840739,-510.87734503,0.00019178,2]
[358868196,1745497840748,-500.0,0.00019178,2]
[358868197,1745497840757,-500.0,0.00019178,2]
[358868198,1745497840766,-512.35601815,0.00019178,2]
[358868199,1745497840777,-500.0,0.00019178,2]
[358868200,1745497840786,-507.14471791,0.00019178,2]
[358868201,1745497840795,-796.92,0.00019178,2]
[358868202,1745497840804,-500.0,0.00019178,2]
[358868203,1745497840813,-500.0,0.00019178,2]
[358868204,1745497840822,-586.81,0.00019178,2]
[358868205,1745497840831,-500.0,0.00019178,2]
[358868206,1745497840841,-500.0,0.00019178,2]
[358868207,1745497840850,-500.0,0.00019178,2]
[358868208,1745497840859,-500.0,0.00019178,2]
[358868209,1745497840868,-500.0,0.00019178,2]
[358868210,1745497840877,-820.53,0.00019178,2]
[358868211,1745497840886,-758.94,0.00019178,2]
[358868212,1745497840896,-500.0,0.00019178,2]
[358868213,1745497840905,-500.0,0.00019178,2]
[358868214,1745497840916,-500.0,0.00019178,2]
[358868215,1745497840926,-500.0,0.00019178,2]
[358868216,1745497840935,-4260.35,0.00019178,2]
[358868217,1745497840945,-509.09578497,0.00019178,2]
[358868218,1745497840954,-500.0,0.00019178,2]
[358868219,1745497840964,-547.8,0.00019178,2]
[358868220,1745497840972,-500.0,0.00019178,2]
[358868221,1745497840982,-500.0,0.00019178,2]
[358868222,1745497840991,-500.0,0.00019178,2]
[358868223,1745497841134,-500.0,0.00019178,2]
[358868224,1745497841144,-500.0,0.00019178,2]
[358868225,1745497841154,-500.0,0.00019178,2]
[358868226,1745497841163,-500.0,0.00019178,2]
[358868227,1745497841172,-829.0,0.00019178,2]
[358868228,1745497841182,-500.0,0.00019178,2]
[358868229,1745497841191,-500.0,0.00019178,2]
[358868230,1745497841201,-500.0,0.00019178,2]
[358868231,1745497841210,-1737.02,0.00019178,2]
[358868232,1745497841219,-607.15538036,0.00019178,2]
[358868233,1745497841228,-500.0,0.00019178,2]
[358868234,1745497841237,-5825.87,0.00019178,2]
[358868235,1745497841247,-1365.59,0.00019178,2]
[358868236,1745497841256,-500.0,0.00019178,2]
[358868237,1745497841265,-500.0,0.00019178,2]
[358868238,1745497841274,-1312.76,0.00019178,2]
[358868239,1745497841283,-500.0,0.00019178,2]
[358868240,1745497841293,-500.0,0.00019178,2]
[358868241,1745497841302,-1053.44,0.00019178,2]
[358868242,1745497841311,-245.04110683,0.00019178,2]
[358868243,1745497841321,-500.0,0.00019178,2]
[358868244,1745497841330,-1185.39,0.00019178,2]
[358868245,1745497841339,-1631.32,0.00019178,2]
[358868246,1745497841349,-500.0,0.00019178,2]
[358868247,1745497841359,-3915.15,0.00019178,2]
[358868248,1745497841369,-1000.88,0.00019178,2]
[358868249,1745497841379,-500.0,0.00019178,2]
[358868250,1745497841389,-502.1,0.00019178,2]
[358868251,1745497841399,-501.02104774,0.00019178,2]
[358868252,1745497841408,-769.75,0.00019178,2]
[358868253,1745497841418,-500.0,0.00019178,2]
[358868254,1745497841427,-508.14850248,0.00019178,2]
[358868255,1745497841437,-500.0,0.00019178,2]
[358868256,1745497841447,-578.54,0.00019178,2]
[358868257,1745497841456,-551.7,0.00019178,2]
[358868258,1745497841466,-500.0,0.00019178,2]
[358868259,1745497841476,-500.0,0.00019178,2]
[358868260,1745497841486,-3023.75,0.00019178,2]
[358868261,1745497841495,-500.0,0.00019178,2]
[358868262,1745497841505,-260.82011822,0.00019178,2]
[358868263,1745497841515,-1000.0,0.00019178,2]
[358868264,1745497841525,-500.0,0.00019178,2]
[358868265,1745497841534,-500.0,0.00019178,2]
[358868266,1745497841544,-821.68,0.00019178,2]
[358868267,1745497841556,-500.0,0.00019178,2]
[358868268,1745497841566,-1083.31,0.00019178,2]
[358868269,1745497841575,-500.0,0.00019178,2]
[358868270,1745497841585,-500.0,0.00019178,2]
[358868271,1745497841595,-500.0,0.00019178,2]
[358868272,1745497841605,-1061.56,0.00019178,2]
[358868273,1745497841615,-514.3,0.00019178,2]
[358868274,1745497841624,-500.0,0.00019178,2]
[358868275,1745497841634,-515.64641614,0.00019178,2]
[358868276,1745497841643,-400.73634668,0.00019178,2]
[358868277,1745497841653,-3760.89,0.00019178,2]
[358868278,1745497841662,-500.0,0.00019178,2]
[358868279,1745497841671,-500.0,0.00019178,2]
[358868280,1745497841680,-436.67521683,0.00019178,2]
[358868281,1745497841690,-500.0,0.00019178,2]
[358868282,1745497841699,-500.0,0.00019178,2]
[358868283,1745497841709,-500.0,0.00019178,2]
[358868284,1745497841719,-500.0,0.00019178,2]
[358868285,1745497841728,-500.0,0.00019178,2]
[358868286,1745497841738,-363.02685896,0.00019178,2]
[358868287,1745497841747,-500.0,0.00019178,2]
[358868288,1745497841757,-500.0,0.00019178,2]
[358868289,1745497841766,-500.0,0.00019178,2]
[358868290,1745497841775,-500.0,0.00019178,2]
[358868291,1745497841785,-500.0,0.00019178,2]
[358868292,1745497841795,-500.0,0.00019178,2]
[358868293,1745497841804,-500.0,0.00019178,2]
[358868294,1745497841814,-500.0,0.00019178,2]
[358868295,1745497841824,-500.0,0.00019178,2]
[358868296,1745497841833,-500.0,0.00019178,2]
[358868297,1745497841842,-534.65,0.00019178,2]
[358868298,1745497841852,-500.0,0.00019178,2]
[358868299,1745497841861,-500.0,0.00019178,2]
[358868300,1745497841870,-508.83018846,0.00019178,2]
[358868301,1745497841879,-500.0,0.00019178,2]
[358868302,1745497841889,-500.0,0.00019178,2]
[358868303,1745497841898,-419.8076554,0.00019178,2]
[358868304,1745497841907,-500.0,0.00019178,2]
[358868305,1745497841916,-1067.91,0.00019178,2]
[358868306,1745497841925,-501.20866576,0.00019178,2]
[358868307,1745497841935,-500.0,0.00019178,2]
[358868308,1745497841943,-500.0,0.00019178,2]
[358868309,1745497841953,-500.0,0.00019178,2]
[358868310,1745497841962,-500.0,0.00019178,2]
[358868311,1745497841971,-500.0,0.00019178,2]
[358868312,1745497841980,-1274.98,0.00019178,2]
[358868313,1745497841990,-1611.32,0.00019178,2]
[358868314,1745497841999,-1333.41,0.00019178,2]
[358868315,1745497842008,-4373.15,0.00019178,2]
[358868316,1745497842017,-500.0,0.00019178,2]
[358868317,1745497842027,-500.0,0.00019178,2]
[358868318,1745497842037,-500.0,0.00019178,2]
[358868319,1745497842046,-275.60695391,0.00019178,2]
[358868320,1745497842055,-242.75708961,0.00019178,2]
[358868321,1745497842066,-266.99875747,0.00019178,2]
[358868322,1745497842075,-500.0,0.00019178,2]
[358868323,1745497842084,-639.40498532,0.00019178,2]
[358868324,1745497842093,-601.39,0.00019178,2]
[358868325,1745497842102,-500.0,0.00019178,2]
[358868326,1745497842112,-3142.98,0.00019178,2]
[358868327,1745497842122,-543.44,0.00019178,2]
[358868328,1745497842132,-466.83377839,0.00019178,2]
[358868329,1745497842142,-500.0,0.00019178,2]
[358868330,1745497842151,-500.0,0.00019178,2]
[358868331,1745497842161,-4029.99,0.00019178,2]
[358868332,1745497842170,-500.0,0.00019178,2]
[358868333,1745497842180,-888.99,0.00019178,2]
[358868334,1745497842190,-500.0,0.00019178,2]
[358868335,1745497842199,-500.0,0.00019178,2]
[358868336,1745497842209,-500.0,0.00019178,2]
[358868337,1745497842218,-500.0,0.00019178,2]
[358868338,1745497842227,-576.39645204,0.00019178,2]
[358868339,1745497842236,-628.36,0.00019178,2]
[358868340,1745497842246,-500.0,0.00019178,2]
[358868341,1745497842256,-8295.67,0.00019178,2]
[358868342,1745497842265,-500.0,0.00019178,2]
[358868343,1745497842275,-500.0,0.00019178,2]
[358868344,1745497842285,-4016.98,0.00019178,2]
[358868345,1745497842295,-845.11,0.00019178,2]
[358868346,1745497842304,-500.0,0.00019178,2]
[358868347,1745497842314,-539.06,0.00019178,2]
[358868348,1745497842325,-562.99,0.00019178,2]
[358868349,1745497842336,-500.0,0.00019178,2]
[358868350,1745497842346,-500.0,0.00019178,2]
[358868351,1745497842357,-500.0,0.00019178,2]
[358868352,1745497842368,-514.44,0.00019178,2]
[358868353,1745497842378,-500.0,0.00019178,2]
[358868354,1745497842388,-5442.83,0.00019178,2]
[358868355,1745497842398,-500.0,0.00019178,2]
[358868356,1745497842407,-743.02,0.00019178,2]
[358868357,1745497842417,-687.61,0.00019178,2]
[358868358,1745497842427,-500.0,0.00019178,2]
[358868359,1745497842436,-500.0,0.00019178,2]
[358868360,1745497842446,-500.0,0.00019178,2]
[358868361,1745497842455,-1436.0,0.00019178,2]
[358868362,1745497842464,-500.0,0.00019178,2]
[358868363,1745497842475,-500.0,0.00019178,2]
[358868364,1745497842485,-863.36,0.00019178,2]
[358868365,1745497842495,-1338.62,0.00019178,2]
[358868366,1745497842504,-1076.49,0.00019178,2]
[358868367,1745497842514,-504.87985386,0.00019178,2]
[358868368,1745497842525,-500.0,0.00019178,2]
[358868369,1745497842536,-3185.71,0.00019178,2]
[358868370,1745497842546,-524.65146944,0.00019178,2]
[358868371,1745497842561,-4176.96,0.00019178,2]
[358868372,1745497842571,-151.0,0.00019178,2]
[358868373,1745497842581,-500.0,0.00019178,2]
[358868374,1745497842591,-500.0,0.00019178,2]
[358868375,1745497842602,-500.0,0.00019178,2]
[358868376,1745497842612,-844.81,0.00019178,2]
[358868377,1745497842622,-931.38,0.00019178,2]
[358868378,1745497842634,-500.0,0.00019178,2]
[358868379,1745497842644,-3982.53,0.00019178,2]
[358868380,1745497842655,-552.98,0.00019178,2]
[358868381,1745497842666,-500.0,0.00019178,2]
[358868382,1745497842677,-500.0,0.00019178,2]
[358868383,1745497842687,-500.0,0.00019178,2]
[358868384,1745497842697,-500.0,0.00019178,2]
[358868385,1745497842707,-516.36,0.00019178,2]
[358868387,1745497842716,-808.74,0.00019178,2]
[358868388,1745497842725,-944.82,0.00019178,2]
[358868389,1745497842735,-500.0,0.00019178,2]
[358868390,1745497842744,-510.60520705,0.00019178,2]
[358868391,1745497842754,-500.0,0.00019178,2]
[358868393,1745497842763,-300.0,0.00019178,2]
[358868394,1745497842773,-157.2502195,0.000192,2]
[358868395,1745497842791,-151.0,0.00019233,2]
[358868396,1745497842800,-199.1726496,0.00019233,2]
[358868397,1745497842809,-153.0,0.00019233,2]
[358868398,1745497842819,-153.0,0.00019233,2]
[358868399,1745497842828,-153.0,0.00019252,2]
[358868400,1745497842838,-27622.93520569,0.00019256,3]
[358868401,1745497842848,-12576.49486522,0.00019256,3]
[358868402,1745497842857,-160.0,0.00019256,3]
[358868403,1745497842867,-115600.12357131,0.00019256,2]
[358868404,1745497842895,-1614.83479386,0.00019256,2]
[358868405,1745497842907,-708.43795877,0.00019256,2]
[358868406,1745497842918,-813.62704925,0.00019256,2]
[358868408,1745497842929,-416.351307,0.00019256,2]
[358868411,1745497843119,-500.0,0.00019178,2]
[358868412,1745497843128,-494.5,0.00019256,2]
[358868413,1745497843155,-1231.20954291,0.00019256,2]
[358868414,1745497843167,-10598.5326794,0.00019256,2]
[358868421,1745497845860,-500.0,0.00019178,2]
[358868422,1745497845869,-500.0,0.00019178,2]
[358868423,1745497845878,-31759.4976779,0.00019256,2]
[358868424,1745497845915,-672.0,0.00019256,2]
[358868425,1745497846136,-641.24147564,0.00019256,2]
[358868431,1745498002343,6402.0,0.00015,2]
[358868443,1745498850095,-500.0,0.0001753,2]
[358868444,1745498850117,-225.85759029,0.0001753,2]
[358868488,1745499032016,-300.0,0.00017528,2]
[358868489,1745499032026,-289.29,0.00017528,2]
[358868490,1745499032037,-310.71,0.00017528,2]
[358868491,1745499032047,-336.36960745,0.00017528,2]
[358868492,1745499032056,-192.09997708,0.00017528,2]
[358868493,1745499032065,-500.0,0.00017529,2]
[358868494,1745499032074,-592.22004258,0.00017529,2]
[358868495,1745499032083,-500.0,0.00017529,2]
[358868496,1745499032093,-500.0,0.00017529,2]
[358868498,1745499032102,-500.0,0.00017529,2]
[358868499,1745499032111,-418.83308993,0.00017529,2]
[358868500,1745499032119,-500.0,0.00017529,2]
[358868501,1745499032128,-500.0,0.00017529,2]
[358868502,1745499032137,-500.0,0.00017529,2]
[358868503,1745499032146,-500.0,0.00017529,2]
[358868504,1745499032155,-623.31072402,0.00017529,2]
[358868505,1745499032164,-426.5033302,0.00017667,2]
[358868506,1745499032173,-174.91628399,0.0001769,2]
[358868507,1745499032182,-10578.0224969,0.000177,2]
[358868508,1745499032191,-500.0,0.00017808,2]
[358868509,1745499032200,-282.27271936,0.00018467,2]
[358868510,1745499032209,-588.61533858,0.00018473,2]
[358868511,1745499032218,-500.0,0.00018473,2]
[358868512,1745499032229,-327.0823173,0.00018473,2]
[358868513,1745499032238,-500.0,0.00018473,2]
[358868514,1745499032248,-500.0,0.00018473,2]
[358868515,1745499032257,-500.0,0.00018473,2]
[358868516,1745499032265,-500.0,0.00018473,2]
[358868517,1745499032273,-500.0,0.00018473,2]
[358868518,1745499032282,-167.63532707,0.00018473,2]
[358868519,1745499032291,-19378.96541274,0.00018473,2]
[358868520,1745499032303,-11136.93965226,0.00018473,2]